Cogmind - Beta 14 @@@ ROGUE MODE // 2024.12.16 @ 17:20:18 Player: N.W.L Result: Destroyed by P-80 Master with Gamma Rifle Performance ------------- Evolutions (9) 4500 Regions Visited (23) 4600 Robots Destroyed (263) 1315 Value Destroyed (9639) 9639 Prototype IDs (62) 1240 Alien Tech Used (5) 1000 Bonus (11379) 11379 TOTAL SCORE: 33673 Bonus ------- High Alert Combat Kills 596 Follower Combat Kills 2661 Network Hubs Disabled 400 Met Zhirov 300 Built Enhanced Grunts 300 A7 Reached Mainframe 300 Met R17 at Cetus 500 Found Hidden Lab 3000 Used Core Reset Matrix 3000 Met R17 at Research 2000 Pursued by Intercept 1000 Friendly Fire -2678 Cogmind --------- Core Integrity 0/1600 Matter 231/300 Energy 84/100 System Corruption 16% Temperature Cool (0) Movement Core (50) Location -1/Access Parts ------- > --- POWER (3) -------- (None) > --- PROPULSION (6) --- (None) > --- UTILITY (12) ----- (None) > --- WEAPON (5) ------- (None) > --- INVENTORY (5) ---- Advanced Energy Well (500) Stasis Canceller Advanced Force Field Peak State ------------ > --- POWER ------------ Chain-Quantum Reactor > --- PROPULSION ------- Treaded Biometal-Centrium Exoskeleton > --- UTILITY ---------- Armored Scrap Engine Advanced Coolant Injector Advanced Coolant Injector Experimental Energy Well Machine Analyzer Experimental Core Analyzer Experimental Hardlight Generator Deep Network Scanner Advanced Component Analysis Suite > --- WEAPON ----------- Long-range Proton Cannon Improved Potential Cannon Ballistic Gauss Construct/C > --- INVENTORY -------- Improved Energy Well Advanced Energy Well Stasis Canceller Advanced Reaction Control System Advanced Force Field [Rating: 178] Favorites ----------- Power Constructs Engine Heavy Ion Engine Power Core Light Neutrino Core Reactor Constructs Propulsion Constructs Treads Constructs Leg Centrium Leg Hover Unit Cooled Aerolev Unit Utility Armored Scrap Engine Device Armored Scrap Engine Storage High-capacity Storage Unit Processor Enhanced Optical Array Hackware Hacking Suite Protection Light Armor Plating Artifact LC Capacitor Weapon Constructs Energy Gun EM Pulse Gun Energy Cannon Constructs Ballistic Gun Improved Assault Rifle Ballistic Cannon Constructs Launcher Long-range Missile Launcher Special Weapon Remote Datajack Impact Weapon Hammer Slashing Weapon Great Axe Piercing Weapon Plasma Lance Special Melee Weapon Datajack Build | -11 -10 -10 -9 -9 -9 -7 -6 -6 -6 -6 -6 -5 -5 -5 -5 -4 -4 -4 -4 -3 -2 -2 -1 ------- Run | Yrd Mat Min Mat Sto Rec Fac Fac Ext Cet Arc Hub Fac Upp Upp Zhi Pro Fac Arm Lab Res Res Tes Acc Slots Evolved 18 | . . . 2 . . 4 2 . . . . 2 . . . . 2 . . 2 2 . 2 Power 1 | . . . . . . . . . . . . 1 . . . . . . . . . . . Propulsion 4 | . . . . . . 1 1 . . . . . . . . . 1 . . . 1 . . Utility 10 | . . . 1 . . 2 1 . . . . 1 . . . . 1 . . 1 1 . 2 Weapon 3 | . . . 1 . . 1 . . . . . . . . . . . . . 1 . . . Parts Attached 271 | 7 11 7 18 21 5 28 6 8 5 4 9 15 5 1 3 1 19 13 13 41 11 14 6 Power 20 | 1 1 1 1 4 . 1 . . . . . 4 . . . . 1 . . 4 1 1 . Engine 14 | 1 1 1 1 4 . 1 . . . . . 4 . . . . 1 . . . . . . Core 1 | . . . . . . . . . . . . . . . . . . . . 1 . . . Reactor 5 | . . . . . . . . . . . . . . . . . . . . 3 1 1 . Propulsion 13 | 2 1 . 2 2 . . 1 . . . . . . . . . . 2 1 . . 2 . Treads 9 | 2 1 . 2 2 . . . . . . . . . . . . . . . . . 2 . Leg 2 | . . . . . . . . . . . . . . . . . . 1 1 . . . . Wheel . | . . . . . . . . . . . . . . . . . . . . . . . . Hover 2 | . . . . . . . 1 . . . . . . . . . . 1 . . . . . Flight . | . . . . . . . . . . . . . . . . . . . . . . . . Utility 138 | 2 2 1 4 4 3 13 2 7 2 3 7 7 4 1 1 1 11 7 10 25 9 6 6 Device 73 | 1 . 1 1 1 1 7 1 4 . . 4 5 3 1 . . 7 4 6 12 7 2 5 Storage 15 | 1 1 . 1 1 1 . . . 2 . . 1 1 . . . . . . 3 . 2 1 Processor 13 | . . . . . 1 1 . 1 . . . 1 . . . . 1 3 . 4 . 1 . Hackware 11 | . . . . . . 2 1 1 . 3 1 . . . . . 1 . 1 . . 1 . Protection 23 | . 1 . 2 2 . 3 . 1 . . 2 . . . 1 1 2 . 2 4 2 . . Artifact 3 | . . . . . . . . . . . . . . . . . . . 1 2 . . . Weapon 100 | 2 7 5 11 11 2 14 3 1 3 1 2 4 1 . 2 . 7 4 2 12 1 5 . Energy Gun 20 | 1 5 1 3 . . 4 1 . . . 1 . . . . . 1 . . 2 1 . . Energy Cannon 20 | . . 1 1 1 . . . . . . . 2 . . 2 . 1 2 2 4 . 4 . Ballistic Gun 12 | 1 1 1 . 7 . 1 1 . . . . . . . . . . . . . . . . Ballistic Cannon 11 | . . . 4 . . . . . . . . 2 . . . . 1 . . 4 . . . Launcher 18 | . . 1 1 . . 4 1 1 3 . . . 1 . . . 4 . . 1 . 1 . Special Weapon 3 | . . . . . . 2 . . . . 1 . . . . . . . . . . . . Impact Weapon 3 | . 1 1 . . . 1 . . . . . . . . . . . . . . . . . Slashing Weapon 11 | . . . 2 3 1 2 . . . 1 . . . . . . . 1 . 1 . . . Piercing Weapon 1 | . . . . . . . . . . . . . . . . . . 1 . . . . . Special Melee Weapon 1 | . . . . . 1 . . . . . . . . . . . . . . . . . . Unidentified Prototypes 36 | . . . . 2 1 1 3 . . . 2 1 . . 2 . 1 3 4 7 1 8 . Parts Lost 44 | . 2 . 1 . 1 6 . 2 . . 1 3 . 2 . 2 6 2 1 3 2 2 8 Power 6 | . . . . . . 1 . . . . . 2 . 1 . . 1 . . . . . 1 Propulsion 1 | . . . . . . . . . . . . . . . . . . . . 1 . . . Utility 19 | . . . 1 . . 3 . 2 . . . . . 1 . 1 1 1 . 2 1 1 5 Weapon 18 | . 2 . . . 1 2 . . . . 1 1 . . . 1 4 1 1 . 1 1 2 Highest Loss Streak 3 | . 1 . 1 . 1 2 . 2 . . 1 1 . 2 . 1 3 1 1 1 2 1 3 To Critical Strikes . | . . . . . . . . . . . . . . . . . . . . . . . . Average Slot Usage (%) 66 | . 99 100 99 99 70 61 59 59 53 48 57 57 63 59 56 58 58 60 50 41 50 50 49 Engine 5 | . 14 14 11 11 10 3 5 . . 5 3 3 7 1 . . . . . . . . . Core 1 | . . . . . . 2 . 5 2 . 2 3 3 5 5 5 3 . . . . . . Treads 7 | . 28 28 22 21 9 3 2 3 4 6 2 . 1 . . . 1 . . . . 4 2 Leg 2 | . . . . . 3 2 . 1 1 . 3 5 3 5 5 5 2 6 5 3 4 1 . Device 13 | . 3 11 10 11 10 14 13 13 13 12 15 17 17 17 12 11 14 14 12 10 22 22 22 Storage 7 | . 14 14 14 11 11 7 6 6 7 6 6 5 5 5 5 5 5 5 5 3 . . 6 Processor 2 | . . . . . . 2 . . 6 5 . 3 5 5 5 5 5 9 4 1 4 7 5 Hackware 3 | . . . . . . 2 12 10 . . 3 5 5 5 5 5 5 5 3 4 4 4 1 Protection 3 | . 10 2 7 11 2 1 . 1 4 . 4 . . . 2 5 4 . 2 . 2 . . Energy Gun 2 | . 20 5 11 . . 5 . 2 . . . . . . . . 1 . 1 . 1 2 . Energy Cannon 3 | . . 1 4 . . 2 1 6 6 2 5 6 10 5 7 11 5 11 7 2 2 1 3 Ballistic Gun 5 | . 6 15 . 29 15 . . . . . . . . . . . . . . . . . . Ballistic Cannon 1 | . . . 14 1 2 1 4 . . 3 . . . . . . 1 . . 2 . 1 . Slashing Weapon 1 | . . . 1 2 1 6 6 2 . 1 1 . . . . . . . . . 4 . . Peak Build Rating 178 | 7 9 8 19 28 44 63 72 76 91 85 99 103 111 109 110 112 126 148 153 172 143 178 178 Average Rating 73 | 5 7 8 15 26 34 49 61 70 80 79 90 96 105 106 106 110 112 129 134 153 129 146 144 On Entrance 79 | . 7 8 8 19 28 34 54 71 75 83 85 94 103 109 106 110 105 126 141 139 96 125 178 Naked Turns 44 | . . . . . . . . . . . . . . . . . . . . . . . 44 Heaviest Build 147 | 12 32 32 43 101 101 47 45 52 82 69 98 128 129 87 80 86 103 116 139 147 51 83 81 Greatest Support 158 | 40 40 40 40 40 40 77 54 48 116 116 144 144 144 100 100 100 158 157 157 157 71 151 71 Greatest Overweight (x) 6 | . . . 1 5 6 1 1 1 1 . . . 1 . . . . . . 1 . 1 1 Average Overweight (x) . | . . . . 1 1 . . . . . . . . . . . . . . . . . . Largest Inventory Capacity 25 | 8 15 15 15 25 25 15 15 15 20 20 20 25 25 20 20 20 20 20 20 25 5 5 5 Average Capacity 17 | 7 13 15 15 24 19 15 15 15 18 20 20 20 23 20 20 20 20 20 20 19 5 5 5 Most Carried 25 | 4 14 15 15 25 25 15 15 15 20 20 20 22 22 19 20 19 20 20 20 22 5 5 5 Average Carried 15 | 2 10 14 14 22 13 12 14 13 15 18 18 19 16 17 19 18 18 19 18 19 4 4 4 Final Capacity 25 | 8 15 15 15 25 15 15 15 15 20 20 20 25 20 20 20 20 20 20 20 5 5 5 5 Final Carried 25 | 4 14 15 15 25 8 15 15 14 20 18 20 22 17 19 19 18 18 19 20 5 5 5 3 Scrap Engine Consumption 250 | . . . . . 39 41 12 25 8 4 17 7 8 . 5 . 30 9 5 16 5 14 5 Constructs Created 9 | . . . . . 4 2 . . . . . . 1 . . . 1 . . . . 1 . Constructs Modified 99 | . . . . . 11 14 7 11 4 4 8 . 6 . 1 . 11 5 1 9 2 3 2 Class Distribution -------------------- 34% | Construct 20% | Commander-Construct 12% | Mutant 8% | Tank 6% | Alien-Mutant 5% | Hacker-Construct 5% | Hacker-Mutant Dominant Class ---------------- Mutant | -10/Materials Mutant | -10/Mines Tank | -9/Materials Tank | -9/Storage Construct | -9/Recycling Construct | -7/Factory Hacker-Construct | -6/Factory Commander-Construct | -6/Extension Commander-Construct | -6/Cetus Commander-Construct | -6/Archives Construct | -6/Hub_04(d) Construct | -5/Factory Construct | -5/Upper Caves Construct | -5/Upper Caves Construct | -5/Zhirov Construct | -4/Proximity Caves Construct | -4/Factory Construct | -4/Armory Construct | -4/Lab Alien-Mutant | -3/Research Hacker-Mutant | -2/Research Hacker-Mutant | -2/Testing Alien-Mutant | -1/Access Resources | -11 -10 -10 -9 -9 -9 -7 -6 -6 -6 -6 -6 -5 -5 -5 -5 -4 -4 -4 -4 -3 -2 -2 -1 ----------- Run | Yrd Mat Min Mat Sto Rec Fac Fac Ext Cet Arc Hub Fac Upp Upp Zhi Pro Fac Arm Lab Res Res Tes Acc Matter Collected 5804 | 276 340 145 117 689 304 452 70 398 170 10 180 165 27 . 133 . 649 262 . 1020 . 232 165 Remotely . | . . . . . . . . . . . . . . . . . . . . . . . . Salvage Created 10759 | 123 754 128 458 1078 962 922 145 483 454 366 384 542 32 143 293 . 903 472 . 305 . 944 868 Parts 582 | 11 40 5 21 74 37 73 6 30 16 24 16 28 8 2 6 . 48 27 . 12 . 53 45 Haulers Intercepted 16 | . 2 . 1 5 . 1 1 . . . 1 1 . . . . 1 . . 2 . 1 . Recyclers Shooed 4 | . . . . . 4 . . . . . . . . . . . . . . . . . . Parts Field Recycled . | . . . . . . . . . . . . . . . . . . . . . . . . Retrieved Matter . | . . . . . . . . . . . . . . . . . . . . . . . . Parts Self-Destructed 5 | . . . . . . . . . . . . . 2 2 1 . . . . . . . . Prevented . | . . . . . . . . . . . . . . . . . . . . . . . . Kills | -11 -10 -10 -9 -9 -9 -7 -6 -6 -6 -6 -6 -5 -5 -5 -5 -4 -4 -4 -4 -3 -2 -2 -1 ------- Run | Yrd Mat Min Mat Sto Rec Fac Fac Ext Cet Arc Hub Fac Upp Upp Zhi Pro Fac Arm Lab Res Res Tes Acc Combat Hostiles Destroyed 172 | . 13 1 9 14 8 22 1 9 3 1 5 9 5 6 . . 30 10 1 3 . 10 12 Melee 4 | . . . . . . 4 . . . . . . . . . . . . . . . . . Guns 51 | . 10 . 4 11 7 12 . . . . . . . . . . . . . 1 . 6 . Cannons 66 | . . . 3 3 1 . 1 9 . 1 5 9 . 2 . . 11 8 . 1 . 2 10 AOE 40 | . 2 1 2 . . 6 . . . . . . 5 4 . . 18 2 . . . . . Classes Destroyed 20 | 2 5 2 1 1 2 3 . . . . 1 . . . . . . . . 2 . 1 . Worker 14 | . . 1 1 3 . 5 . . . . 1 . . . . . 1 . . . . . 2 Builder 15 | . 2 . . 6 . 5 . . . . . . . . . . 1 . . . . 1 . Tunneler 7 | 3 . 1 . . . 2 . . . . . . . . . . 1 . . . . . . Hauler 16 | . 2 . 1 5 . 1 1 . . . 1 1 . . . . 1 . . 2 . 1 . Recycler 11 | 1 1 . 1 1 6 . . . . . . . . . . . . . . . . 1 . Mechanic 1 | . . . . . . . . . . . . . . . . . . . . 1 . . . Operator 13 | . . . . 1 . 1 . . . 9 1 . . . . . 1 . . . . . . Watcher 10 | . 2 . 1 1 . . 1 2 1 . . 1 . . . . 1 . . . . . . Swarmer 54 | . 3 . 2 . 1 11 . . . . . . 5 2 . . 20 5 . 2 . 3 . Cutter 3 | . . . . . . 3 . . . . . . . . . . . . . . . . . Grunt 44 | . 10 . 6 8 . 3 . 3 . . . 4 . 3 . . . . . . . 3 4 Brawler 1 | . . . . . . . . . . . . . . . . . . . . . . 1 . Duelist 1 | . . . . . . 1 . . . . . . . . . . . . . . . . . Sentry 27 | . . . 1 6 2 2 1 4 . 1 1 3 . 1 . . 2 2 . . . . 1 Specialist 3 | . . . . . . . . . . . 3 . . . . . . . . . . . . Hunter 10 | . . . . . . 1 . 1 . . . . . . . . 6 . . . . . 2 Programmer 19 | . . . . . 2 1 . 1 . . 1 2 . . . . 2 3 . . . 3 4 Cetus Guard 3 | . . . . . . . . . 3 . . . . . . . . . . . . . . Tracker 1 | . . . . . . . . . . . . . . . . . . . . . . . 1 Striker 1 | . . . . . . . . . . . . . . . . . . . . 1 . . . Scrapper 3 | . . . . . 3 . . . . . . . . . . . . . . . . . . Decomposer 1 | . . . . . . . . . . . . . . 1 . . . . . . . . . Assembled 1 | . . 1 . . . . . . . . . . . . . . . . . . . . . Butcher 1 | . . . . . . . . . 1 . . . . . . . . . . . . . . Guerrilla 3 | . . . . . . . . . 3 . . . . . . . . . . . . . . Best Kill Streak 8 | 3 3 2 3 5 5 5 1 2 4 3 2 3 5 5 . . 8 5 1 3 . 8 6 Combat Bots Only 7 | . 3 1 2 3 3 5 1 2 3 1 2 3 5 5 . . 7 5 1 2 . 6 5 Max Kills in Single Turn 5 | 1 2 2 2 1 2 3 1 1 1 1 1 1 3 2 . . 5 1 1 1 . 1 1 Gunslinging . | . . . . . . . . . . . . . . . . . . . . . . . . Exploded 5 | . 1 1 2 . . 3 . . . . . . 3 2 . . 5 1 . . . . . Melee 1 | . . . . . . 1 . . . . . . . . . . . . . . . . . Uniques/NPCs Destroyed 2 | . . 1 . . . . . . . . . . . . . . . . 1 . . . . YI-UF0 (-10/Mines) A5 (-4/Lab) Combat | -11 -10 -10 -9 -9 -9 -7 -6 -6 -6 -6 -6 -5 -5 -5 -5 -4 -4 -4 -4 -3 -2 -2 -1 -------- Run | Yrd Mat Min Mat Sto Rec Fac Fac Ext Cet Arc Hub Fac Upp Upp Zhi Pro Fac Arm Lab Res Res Tes Acc Hostile Shots Fired 1761 | . 55 1 28 25 45 157 81 107 19 5 22 61 10 37 . 75 212 59 82 148 118 97 317 Missed 583 | . 18 . 7 9 7 55 34 34 7 2 10 23 4 11 . 29 79 11 18 57 70 13 85 Damage Taken 22413 | . 518 12 281 245 636 1856 426 696 273 75 514 844 94 539 . 904 2546 956 1335 2362 1027 2015 4259 Core 3408 | . 133 12 27 12 155 204 127 41 12 . 44 59 . 19 . 49 104 77 132 286 140 174 1601 Absorbed by Shields 2192 | . . . . . . . . 32 86 . 17 . . . . . . . 329 59 . 350 1319 Reduced by Siege Mode 385 | . . . . . . . . . . . . . . . . . . . . . . 254 131 Redirected to Shielding 162 | . . . . . . . . . . . . . . . . 162 . . . . . . . Ignored by Resistances 100 | . . . . . . . . . . . . . . . . . . . . . 100 . . Regen/Repaired (Parts) 7870 | . 99 . . . 63 585 258 560 129 165 143 105 484 . 213 . 1109 480 240 814 357 1398 668 Core Remaining (%) 70 | 100 . 42 . . 51 70 . . . . 73 . . . . 87 . . 68 69 . 78 . Volleys Fired 986 | 6 56 19 19 44 50 55 31 52 30 11 47 64 20 8 6 . 109 74 59 77 3 66 80 Largest 3 | 2 2 2 3 3 3 3 1 2 1 1 1 1 1 1 1 . 2 2 1 2 1 2 1 Hottest 384 | 60 80 60 138 117 69 188 144 176 96 96 96 93 370 370 81 . 123 384 296 237 146 181 100 Shots Fired 1264 | 12 111 36 55 131 72 88 31 53 30 11 47 64 20 8 6 . 110 76 58 94 3 68 80 Gun 486 | 12 111 35 30 116 56 66 . 1 . . . . . . . . 5 3 . 7 3 41 . Cannon 717 | . . . 24 15 16 13 31 45 18 11 44 61 18 5 6 . 85 73 58 87 . 27 80 Launcher 54 | . . 1 1 . . 8 . 7 12 . . . 2 3 . . 20 . . . . . . Special 7 | . . . . . . 1 . . . . 3 3 . . . . . . . . . . . Kinetic 427 | 6 23 32 22 131 49 22 . . . 1 4 . . . . . 19 . . 48 . . 70 Thermal 508 | . . . 2 . 23 57 31 46 18 10 37 61 18 5 . . 39 42 31 39 3 46 . Explosive 35 | . . 1 1 . . 8 . . . . . . 2 3 . . 20 . . . . . . Electromagnetic 287 | 6 88 3 30 . . . . 7 12 . 3 . . . 6 . 32 34 27 7 . 22 10 Robot Hit Streak 16 | 4 9 9 8 10 12 11 4 12 9 2 11 7 . 6 12 . 16 6 8 12 . 8 11 Robot Miss Streak 7 | 1 4 3 3 3 2 7 3 2 2 2 3 3 . . . . 3 4 5 4 . 4 3 Penetration Max . | . . . . . . . . . . . . . . . . . . . . . . . . Secondary Targets 3 | . . . . 1 . 2 . . . . . . . . . . . . . . . . . Max Gunslinging Chain 1 | . . . . 1 . 1 . . . . . . . . . . . . . . . . . Shots Hit Robots 747 | 7 62 27 33 93 89 85 10 25 13 17 14 35 . 5 6 . 47 18 27 44 . 46 44 Core Hits 382 | 6 30 11 20 40 24 57 3 13 20 8 10 8 8 9 2 . 43 14 4 10 . 21 21 Critical Kills 7 | . . . . 1 . . . . . . 2 3 . . . . . . . . . 1 . Critical Parts Destroyed 7 | . 1 . . 1 . . . . . . 1 2 . 1 . . 1 . . . . . . Critical Strikes 23 | . 1 . 2 3 1 . 1 . . 1 3 5 . 1 . . 3 . . . . 2 . Burn 2 | . . . . . 1 . . . . 1 . . . . . . . . . . . . . Meltdown 1 | . . . . . . . . . . . . . . . . . . . . . . 1 . Destroy 13 | . 1 . . 2 . . . . . . 3 5 . 1 . . 1 . . . . . . Blast 5 | . . . 2 1 . . . . . . . . . . . . 2 . . . . . . Corrupt 1 | . . . . . . . . . . . . . . . . . . . . . . 1 . Sever 1 | . . . . . . . 1 . . . . . . . . . . . . . . . . Melee Attacks 169 | . 2 4 5 22 30 64 20 1 . 13 . . . . . . . . . 1 7 . . Impact 8 | . 2 4 . . . 2 . . . . . . . . . . . . . . . . . Slashing 145 | . . . 5 22 14 62 20 1 . 13 . . . . . . . . . 1 7 . . Piercing . | . . . . . . . . . . . . . . . . . . . . . . . . Sneak Attacks 54 | . . . 1 7 20 14 1 1 . 10 . . . . . . . . . . . . . Combat Hostiles 11 | . . . . . 11 . . . . . . . . . . . . . . . . . . Follow-up Attacks . | . . . . . . . . . . . . . . . . . . . . . . . . Damage Inflicted 32171 | 121 1127 323 741 1886 2028 2986 415 1700 1316 1446 1324 2655 439 952 180 . 3962 828 1796 1796 37 2089 2024 Guns 6139 | 81 832 223 297 1279 808 1057 . 31 . . . . . . . . . . . 251 . 1280 . Cannons 15472 | . . . 254 172 255 91 213 1447 604 314 1324 2594 . 435 180 . 1508 698 1224 1545 . 758 1856 Explosions 5968 | 40 286 75 93 . . 384 . 147 712 . . . 439 517 . . 2409 129 572 . . . 165 Melee 4275 | . . . 88 416 924 1441 200 74 . 1132 . . . . . . . . . . . . . Ramming 317 | . 9 25 9 19 41 13 2 1 . . . 61 . . . . 45 1 . . 37 51 3 Kinetic 6077 | 25 105 189 220 1451 681 135 . . . . 226 . . . . . 540 . . 983 . . 1522 Thermal 13247 | 40 286 . 69 . 382 1013 213 1478 604 314 952 2594 . 435 . . 685 405 1680 562 . 1421 114 Explosive 3637 | . . 75 58 . . 384 . . . . . . 439 517 . . 2113 . . . . . 51 Electromagnetic 4618 | 56 727 34 297 . . . . 147 712 . 146 . . . 180 . 579 422 116 251 . 617 334 Impact . | . . . . . . . . . . . . . . . . . . . . . . . . Slashing 4275 | . . . 88 416 924 1441 200 74 . 1132 . . . . . . . . . . . . . Piercing . | . . . . . . . . . . . . . . . . . . . . . . . . Highest Corruption 24 | . 3 3 . . 3 2 . . . . 4 3 . . . . 1 4 24 . . 19 16 Average Corruption 3 | . 2 3 . . 2 1 . . . . 3 2 . . . . 1 1 16 . . 11 6 Corruption Purged 17 | . . . . . . 3 . . . . 4 3 . . . . . . . . . . 7 Corruption Blocked . | . . . . . . . . . . . . . . . . . . . . . . . . Effects 153 | . 20 9 . . 17 13 . . . . 17 5 . . . . 5 15 14 . . 23 15 Message Errors 35 | . 6 3 . . 6 . . . . . 6 2 . . . . 2 4 2 . . 4 . Matter Fused 41 | . 4 4 . . 6 3 . . . . 7 1 . . . . . 3 2 . . 6 5 Heat Flow Errors 24 | . 1 1 . . 1 3 . . . . 2 . . . . . 2 2 4 . . 5 3 Energy Discharges 15 | . 1 . . . 1 3 . . . . 1 1 . . . . . 2 1 . . 2 3 Parts Rejected 2 | . . . . . . . . . . . . . . . . . . . 1 . . 1 . Data Loss (minor) 19 | . 4 . . . 2 2 . . . . . . . . . . 1 3 1 . . 4 2 Data Loss (major) 6 | . 3 . . . . 1 . . . . 1 1 . . . . . . . . . . . Misfires 3 | . . . . . . 1 . . . . . . . . . . . 1 1 . . . . Alerts 1 | . . . . . 1 . . . . . . . . . . . . . . . . . . Misdirections 2 | . . . . . . . . . . . . . . . . . . . . . . . 2 Weapon Failures 5 | . 1 1 . . . . . . . . . . . . . . . . 2 . . 1 . Overload Shots 1 | . . . . . . . 1 . . . . . . . . . . . . . . . . Overflow Damage 2346 | . 2 8 5 135 233 342 4 102 36 427 218 374 . 50 13 . 171 19 90 35 . . 82 Projectiles 859 | . . . . . . . 4 61 36 . 218 374 . . 13 . 9 9 81 35 . . 19 Explosions 309 | . 2 8 5 . . . . . . . . . . 50 . . 162 10 9 . . . 63 Melee 1178 | . . . . 135 233 342 . 41 . 427 . . . . . . . . . . . . . Knockbacks 27 | . . . 1 . . 2 . . . . . . . . . . 1 . . 8 . . 15 Impact . | . . . . . . . . . . . . . . . . . . . . . . . . Kinetic 27 | . . . 1 . . 2 . . . . . . . . . . 1 . . 8 . . 15 Secondary . | . . . . . . . . . . . . . . . . . . . . . . . . Self-Inflicted Damage 370 | . 27 . . . . 38 . . . . . . . . . . 74 98 . . . . 133 Shots 8 | . 2 . . . . 1 . . . . . . . . . . 2 2 . . . . 1 Rammed 22 | . 3 2 3 3 3 . 1 1 . . . . . . . . . . . . . 5 1 Targets Rammed 34 | . 4 2 3 4 3 1 1 1 . . . 6 . . . . 1 1 . . 1 5 1 Kicked 9 | . . . . . . . . . . . . 6 . . . . 1 1 . . 1 . . Crushed 3 | . 1 . . 1 . 1 . . . . . . . . . . . . . . . . . Highest Temperature 498 | 40 303 84 220 69 179 264 84 120 98 114 168 218 488 280 . . 166 498 481 381 133 196 144 Average Temperature 84 | 17 70 29 78 24 40 69 42 32 28 43 34 18 168 139 . . 53 170 125 85 71 98 66 Received Heat Transfer 2112 | . 198 . 147 129 195 183 78 109 13 9 9 186 . 201 . 147 190 72 . 55 63 44 84 Effects 12 | . 1 . . . . . . . . . . . 3 2 . . . 3 3 . . . . Shutdowns 1 | . . . . . . . . . . . . . 1 . . . . . . . . . . Energy Bleed 3 | . 1 . . . . . . . . . . . . . . . . 1 1 . . . . Interference 5 | . . . . . . . . . . . . . 2 2 . . . 1 . . . . . Damage (major) 3 | . . . . . . . . . . . . . . . . . . 1 2 . . . . Siege Activations 5 | . . . . . . . . . . . . . . . . . . . . . . 2 3 Total Turns 168 | . . . . . . . . . . . . . . . . . . . . . . 97 71 Longest Duration 51 | . . . . . . . . . . . . . . . . . . . . . . 51 32 Robots Corrupted 11 | . 1 . . . . . . . 3 . . . . . 1 . 1 . 1 1 . 1 2 Combat Hostiles 11 | . 1 . . . . . . . 3 . . . . . 1 . 1 . 1 1 . 1 2 Parts Fried 22 | . 4 . 3 . . . . . 3 . 1 . . . . . 4 2 . 2 . 2 1 Impact Corruptions . | . . . . . . . . . . . . . . . . . . . . . . . . Robots Melted 1 | . . . . . . . . . . . . . . . . . . . . . . 1 . Combat Hostiles 1 | . . . . . . . . . . . . . . . . . . . . . . 1 . Parts Melted 14 | . . . . . 2 4 1 3 . . . . . 1 . . . . . . . 2 1 Heat Transferred 9874 | 50 450 . 124 . 1000 2250 274 944 277 325 203 . . 250 . . 800 298 1118 650 . 811 50 Parts Sabotaged . | . . . . . . . . . . . . . . . . . . . . . . . . Parts Stolen . | . . . . . . . . . . . . . . . . . . . . . . . . Parts Stripped . | . . . . . . . . . . . . . . . . . . . . . . . . Power Chain Reactions 10 | 1 5 . 1 . . . . . . . . . . . . . . 2 . . . . 1 Alert | -11 -10 -10 -9 -9 -9 -7 -6 -6 -6 -6 -6 -5 -5 -5 -5 -4 -4 -4 -4 -3 -2 -2 -1 ------- Run | Yrd Mat Min Mat Sto Rec Fac Fac Ext Cet Arc Hub Fac Upp Upp Zhi Pro Fac Arm Lab Res Res Tes Acc Peak Influence 853 | 20 289 59 294 632 264 581 313 853 784 423 202 367 . . . . 827 541 . 135 291 406 394 Initial 477 | . 13 50 1 101 189 250 277 105 477 233 23 36 . . . . 91 404 . . 72 155 191 Average 206 | 9 180 38 134 257 66 332 211 228 627 258 60 166 . . . . 385 429 . 46 130 206 257 Maximum Alert Level 3 | . 1 . 1 2 1 2 1 3 3 2 1 1 . . . . 3 2 . . 1 2 1 Low Security (%) 56 | 100 50 100 76 51 88 22 49 46 . 34 94 63 . . . . 34 . . 100 81 43 32 Level 1 26 | . 49 . 23 20 11 42 50 44 . 35 5 36 . . . . 23 31 . . 18 52 67 Level 2 14 | . . . . 28 . 34 . 6 86 29 . . . . . . 21 68 . . . 3 . Level 3 1 | . . . . . . . . 2 13 . . . . . . . 20 . . . . . . Level 4 . | . . . . . . . . . . . . . . . . . . . . . . . . Level 5 . | . . . . . . . . . . . . . . . . . . . . . . . . High Security . | . . . . . . . . . . . . . . . . . . . . . . . . Max Security . | . . . . . . . . . . . . . . . . . . . . . . . . Squads Dispatched 73 | . 3 . 4 6 . 7 4 2 . . 10 3 . . . . 4 5 . 13 2 3 7 Investigation 16 | . 3 . 1 2 . 3 2 2 . . . . . . . . . . . 3 . . . Extermination 13 | . . . . . . 2 . . . . 3 1 . . . . 1 2 . . . 2 2 Reinforcement 31 | . . . 3 1 . 2 2 . . . 7 2 . . . . 2 2 . 7 2 . 1 Assault 5 | . . . . 3 . . . . . . . . . . . . 1 1 . . . . . Garrison 2 | . . . . . . . . . . . . . . . . . . . . . . 1 1 Intercept 6 | . . . . . . . . . . . . . . . . . . . . 3 . . 3 Searches Triggered . | . . . . . . . . . . . . . . . . . . . . . . . . Construction Impeded 5 | . . . 1 . . . 1 . . . 1 . . . . . . . . 1 . . 1 Haulers Reinforced 3 | . . . . . . . 1 . . . . . . . . . . . . 2 . . . Active Scanning Responses . | . . . . . . . . . . . . . . . . . . . . . . . . Cargo Convoy Interrupts . | . . . . . . . . . . . . . . . . . . . . . . . . Stealth | -11 -10 -10 -9 -9 -9 -7 -6 -6 -6 -6 -6 -5 -5 -5 -5 -4 -4 -4 -4 -3 -2 -2 -1 --------- Run | Yrd Mat Min Mat Sto Rec Fac Fac Ext Cet Arc Hub Fac Upp Upp Zhi Pro Fac Arm Lab Res Res Tes Acc Distress Signals 34 | . 1 . 1 4 . 6 2 4 2 . . 2 . . . . . . . 6 . 2 4 Communications Jammed 81 | . . . . . . . . . . . . 38 . . . . 26 1 . 1 15 . . Distress Signals 81 | . . . . . . . . . . . . 38 . . . . 26 1 . 1 15 . . Times Spotted 444 | . 23 3 17 45 10 45 13 33 11 12 17 20 5 8 . 13 47 14 1 32 23 23 29 Peak Tracking Total 17 | . 6 1 5 9 3 6 4 7 5 2 4 5 5 5 . 9 9 5 1 11 17 7 16 Tactical Retreats 49 | . 3 1 3 4 . 5 6 4 . . 3 1 . 1 . 5 4 . . 2 3 2 2 Traps | -11 -10 -10 -9 -9 -9 -7 -6 -6 -6 -6 -6 -5 -5 -5 -5 -4 -4 -4 -4 -3 -2 -2 -1 ------- Run | Yrd Mat Min Mat Sto Rec Fac Fac Ext Cet Arc Hub Fac Upp Upp Zhi Pro Fac Arm Lab Res Res Tes Acc Traps Triggered 30 | . 6 . . 3 . 2 1 5 . . . . . . . . 1 . . 6 2 4 . Indirectly 4 | . . . . . . . . 4 . . . . . . . . . . . . . . . Trap Hack Attempts . | . . . . . . . . . . . . . . . . . . . . . . . . Triggered . | . . . . . . . . . . . . . . . . . . . . . . . . Disarmed . | . . . . . . . . . . . . . . . . . . . . . . . . Reprogrammed . | . . . . . . . . . . . . . . . . . . . . . . . . Reused . | . . . . . . . . . . . . . . . . . . . . . . . . Traps Extracted . | . . . . . . . . . . . . . . . . . . . . . . . . Installed . | . . . . . . . . . . . . . . . . . . . . . . . . Triggered . | . . . . . . . . . . . . . . . . . . . . . . . . Machines | -11 -10 -10 -9 -9 -9 -7 -6 -6 -6 -6 -6 -5 -5 -5 -5 -4 -4 -4 -4 -3 -2 -2 -1 ---------- Run | Yrd Mat Min Mat Sto Rec Fac Fac Ext Cet Arc Hub Fac Upp Upp Zhi Pro Fac Arm Lab Res Res Tes Acc Machines Disabled 57 | . 2 . 2 2 . 4 . 13 1 2 1 3 . . . . 3 8 8 1 . 4 3 Max in Single Turn 2 | . 2 . 1 1 . 2 . 1 1 1 . 1 . . . . 2 1 2 1 . 1 1 Garrison Access 4 | . . . . . . 1 . . . . 1 . . . . . . . . 2 . . . Network Hub 2 | . . . . . . . . . . . 2 . . . . . . . . . . . . Energy Cycler 1 | . . . . . . . . . . . . . . . . . . 1 . . . . . Machines Repaired . | . . . . . . . . . . . . . . . . . . . . . . . . Machines Dismantled . | . . . . . . . . . . . . . . . . . . . . . . . . Machines Sabotaged . | . . . . . . . . . . . . . . . . . . . . . . . . Overloaded Fab Kills . | . . . . . . . . . . . . . . . . . . . . . . . . Hacking | -11 -10 -10 -9 -9 -9 -7 -6 -6 -6 -6 -6 -5 -5 -5 -5 -4 -4 -4 -4 -3 -2 -2 -1 --------- Run | Yrd Mat Min Mat Sto Rec Fac Fac Ext Cet Arc Hub Fac Upp Upp Zhi Pro Fac Arm Lab Res Res Tes Acc Machines Accessed 115 | . 11 . 5 10 11 8 9 12 1 . 2 6 . 1 4 . 7 9 1 6 1 9 2 Terminals 72 | . 8 . 3 9 6 4 7 12 1 . 1 3 . . . . 3 6 . 1 1 6 1 Fabricators 9 | . . . . . . 1 1 . . . . . . . . . 2 2 . 1 . 2 . Repair Stations 7 | . 1 . . 1 . 1 . . . . . 2 . . . . 1 . . 1 . . . Recycling Units 13 | . 2 . 2 . 4 1 . . . . . 1 . . . . 1 1 . 1 . . . Scanalyzers 2 | . . . . . . . 1 . . . . . . . . . . . . . . 1 . Garrison Access 5 | . . . . . . 1 . . . . 1 . . . . . . . . 2 . . 1 Total Hacks 368 | . 41 . 16 26 35 18 24 21 1 . 5 33 . 1 16 . 27 37 1 11 3 39 13 Successful 204 | . 23 . 9 13 21 5 17 10 . . 1 18 . 1 16 . 12 18 1 6 1 27 5 Failed 163 | . 18 . 7 13 14 13 7 11 1 . 4 14 . . . . 15 19 . 5 2 12 8 Catastrophic 35 | . 6 . 1 1 2 4 1 . . . . 3 . . . . 5 5 . 2 1 2 2 Database Lockouts 1 | . . . . . . . . . . . . 1 . . . . . . . . . . . Manual 197 | . 32 . 10 17 22 4 17 5 1 . 1 21 . . . . 13 17 1 2 . 27 7 Terminals 239 | . 31 . 12 23 22 11 18 21 1 . 1 25 . . . . 11 18 . 3 3 28 11 Fabricators 42 | . . . . . . 2 5 . . . . . . . . . 7 16 . 2 . 10 . Repair Stations 18 | . 4 . . 3 . 2 . . . . . 6 . . . . 2 . . 1 . . . Recycling Units 37 | . 6 . 4 . 11 2 . . . . . 2 . . . . 7 3 . 2 . . . Scanalyzers 2 | . . . . . . . 1 . . . . . . . . . . . . . . 1 . Garrison Access 10 | . . . . . . 1 . . . . 4 . . . . . . . . 3 . . 2 Terminal Hacks 84 | . 6 . 3 8 7 1 4 8 . . . 6 . 1 16 . 3 5 1 . 1 10 4 Record 4 | . . . . . . . . . . . . . . . 4 . . . . . . . . Part Schematic 7 | . 2 . . . . . . . . . . . . . 4 . . . . . . 1 . Robot Analysis 8 | . 1 . 2 . . . . . . . . 1 . . 4 . . . . . . . . Prototype ID Bank 10 | . 2 . . . 2 . . . . . . 2 . . 4 . . . . . . . . Open Door 12 | . . . . 3 . . . 8 . . . . . 1 . . . . . . . . . Level Access Points 2 | . . . . . . . . . . . . . . . . . . . . . . 1 1 Branch Access Points 5 | . . . 1 . . . 1 . . . . 1 . . . . 1 . . . 1 . . Emergency Access Points 2 | . 1 . . . . . . . . . . . . . . . . . . . . 1 . Machine Index 2 | . . . . . . . 1 . . . . . . . . . . . . . . 1 . Terminal Index 4 | . . . . . . . 1 . . . . 1 . . . . . 1 . . . . 1 Scanalyzer Index 1 | . . . . . . . . . . . . . . . . . . . . . . 1 . Alert Level 9 | . . . . 3 1 1 . . . . . 1 . . . . . 1 . . . 1 1 Unreport Threat 11 | . . . . 2 2 . 1 . . . . . . . . . 2 1 . . . 2 1 Patrol Status 1 | . . . . . . . . . . . . . . . . . . 1 . . . . . Hauler Manifests 1 | . . . . . . . . . . . . . . . . . . . . . . 1 . Zone Layout 2 | . . . . . . . . . . . . . . . . . . 1 . . . 1 . Release Object 3 | . . . . . 2 . . . . . . . . . . . . . 1 . . . . Fabricator Hacks 11 | . . . . . . . 2 . . . . . . . . . 2 3 . 1 . 3 . Network Status 5 | . . . . . . . 1 . . . . . . . . . 1 1 . 1 . 1 . Load Schematic 1 | . . . . . . . . . . . . . . . . . . . . . . 1 . Build 5 | . . . . . . . 1 . . . . . . . . . 1 2 . . . 1 . Repair Station Hacks 8 | . 4 . . 1 . . . . . . . 3 . . . . . . . . . . . Scan Component 4 | . 2 . . 1 . . . . . . . 1 . . . . . . . . . . . Repair 3 | . 2 . . . . . . . . . . 1 . . . . . . . . . . . Refit 1 | . . . . . . . . . . . . 1 . . . . . . . . . . . Recycling Unit Hacks 12 | . 2 . 1 . 4 1 . . . . . . . . . . 1 2 . 1 . . . Retrieve Components 12 | . 2 . 1 . 4 1 . . . . . . . . . . 1 2 . 1 . . . Scanalyzer . | . . . . . . . . . . . . . . . . . . . . . . . . Garrison Access Hacks 4 | . . . . . . 1 . . . . 1 . . . . . . . . 2 . . . Seal Access 4 | . . . . . . 1 . . . . 1 . . . . . . . . 2 . . . Unauthorized Hacks 85 | . 11 . 5 4 10 2 11 2 . . . 9 . . . . 6 8 . 2 . 14 1 Terminals 52 | . 10 . 4 4 6 1 8 2 . . . 8 . . . . . 2 . . . 6 1 Track 2 | . . . . . . . 2 . . . . . . . . . . . . . . . . Assimilate 6 | . . . . . . 1 1 . . . . 1 . . . . . 1 . . . 1 1 Botnet 7 | . 2 . . . 1 . . . . . . 2 . . . . . 1 . . . 1 . Disrupt 1 | . 1 . . . . . . . . . . . . . . . . . . . . . . Operators 7 | . 1 . 1 . . . 1 1 . . . 2 . . . . . . . . . 1 . Skim 29 | . 6 . 3 4 5 . 4 1 . . . 3 . . . . . . . . . 3 . Fabricators 17 | . . . . . . . 2 . . . . . . . . . 1 6 . 1 . 7 . Report 4 | . . . . . . . . . . . . . . . . . . 1 . 1 . 2 . Prioritize 6 | . . . . . . . 1 . . . . . . . . . 1 2 . . . 2 . Liberate 4 | . . . . . . . 1 . . . . . . . . . . 2 . . . 1 . Fabnet 1 | . . . . . . . . . . . . . . . . . . 1 . . . . . Haulers 2 | . . . . . . . . . . . . . . . . . . . . . . 2 . Repair Stations 4 | . . . . . . 1 . . . . . 1 . . . . 1 . . 1 . . . Mechanics 3 | . . . . . . . . . . . . 1 . . . . 1 . . 1 . . . Patch 1 | . . . . . . 1 . . . . . . . . . . . . . . . . . Recycling Units 10 | . 1 . 1 . 4 . . . . . . . . . . . 4 . . . . . . Monitor 1 | . . . . . . . . . . . . . . . . . 1 . . . . . . Reject 1 | . . . . . . . . . . . . . . . . . 1 . . . . . . Recyclers 1 | . . . . . . . . . . . . . . . . . 1 . . . . . . Mask 1 | . . . . . . . . . . . . . . . . . 1 . . . . . . Tunnel 6 | . 1 . 1 . 4 . . . . . . . . . . . . . . . . . . Scanalyzers 2 | . . . . . . . 1 . . . . . . . . . . . . . . 1 . Researchers 1 | . . . . . . . . . . . . . . . . . . . . . . 1 . Extract 1 | . . . . . . . 1 . . . . . . . . . . . . . . . . Garrison Access . | . . . . . . . . . . . . . . . . . . . . . . . . Data Cores Recovered 1 | . . . . . . . . . . . 1 . . . . . . . . . . . . Used . | . . . . . . . . . . . . . . . . . . . . . . . . Hacking Detections 83 | . 10 . 5 7 8 6 8 8 1 . 1 5 . . . . 4 7 . 3 1 7 2 Full Trace Events 6 | . 1 . . 1 1 2 . . . . . . . . . . . . . 1 . . . Feedback Events 1 | . . . . . . 1 . . . . . . . . . . . . . . . . . Corruption 1 | . . . . . . 1 . . . . . . . . . . . . . . . . . Feedback Blocked . | . . . . . . . . . . . . . . . . . . . . . . . . Robot Schematics Acquired . | . . . . . . . . . . . . . . . . . . . . . . . . Robots Built . | . . . . . . . . . . . . . . . . . . . . . . . . Authchips . | . . . . . . . . . . . . . . . . . . . . . . . . Time . | . . . . . . . . . . . . . . . . . . . . . . . . Total Robot Build Rating . | . . . . . . . . . . . . . . . . . . . . . . . . Part Schematics Acquired 8 | . 2 . . . . . 1 . . . . . . . 4 . . . . . . 1 . Parts Built 9 | . . . . . . . 2 . . . . . . . . . 2 3 . . . 2 . Authchips 1 | . . . . . . . . . . . . . . . . . . . . . . 1 . Time 463 | . . . . . . . 47 . . . . . . . . . 139 138 . . . 139 . Total Part Build Rating 73 | . . . . . . . 10 . . . . . . . . . 18 27 . . . 18 . Parts Repaired 3 | . 2 . . . . . . . . . . 1 . . . . . . . . . . . Time 70 | . 52 . . . . . . . . . . 18 . . . . . . . . . . . Parts Recycled . | . . . . . . . . . . . . . . . . . . . . . . . . Recycled Matter . | . . . . . . . . . . . . . . . . . . . . . . . . Retrieved Matter . | . . . . . . . . . . . . . . . . . . . . . . . . Retrieved Components 34 | . 2 . 2 . 26 . . . . . . . . . . . 3 . . 1 . . . Parts Scanalyzed . | . . . . . . . . . . . . . . . . . . . . . . . . Part Schematics Acquired . | . . . . . . . . . . . . . . . . . . . . . . . . Parts Damaged . | . . . . . . . . . . . . . . . . . . . . . . . . Bothacking | -11 -10 -10 -9 -9 -9 -7 -6 -6 -6 -6 -6 -5 -5 -5 -5 -4 -4 -4 -4 -3 -2 -2 -1 ------------ Run | Yrd Mat Min Mat Sto Rec Fac Fac Ext Cet Arc Hub Fac Upp Upp Zhi Pro Fac Arm Lab Res Res Tes Acc Used RIF Installer . | . . . . . . . . . . . . . . . . . . . . . . . . Robots Hacked 3 | . . . . . . . . . . . . 1 . . . . . . . 2 . . . Non-combat 1 | . . . . . . . . . . . . 1 . . . . . . . . . . . Combat 2 | . . . . . . . . . . . . . . . . . . . . 2 . . . Robot Hacks Applied 1 | . . . . . . . . . . . . 1 . . . . . . . . . . . find_chute 1 | . . . . . . . . . . . . 1 . . . . . . . . . . . Relay Couplers Released 1 | . . . . . . . . . . . 1 . . . . . . . . . . . . Machine Destruction 1 | . . . . . . . . . . . 1 . . . . . . . . . . . . Fabnet Peak Effective % 3 | . . . . . . . . . . . . . . . . . . . . 3 1 1 . Autooverrided 2 | . . . . . . . . . . . . . . . . . . . . 2 . . . Robots Rewired 22 | . . . . . 11 . . 10 . . 1 . . . . . . . . . . . . Allies Hacked 1 | . . . . . . . . . . . . . . . . . . . . . . . 1 Hacks Repelled . | . . . . . . . . . . . . . . . . . . . . . . . . Allies | -11 -10 -10 -9 -9 -9 -7 -6 -6 -6 -6 -6 -5 -5 -5 -5 -4 -4 -4 -4 -3 -2 -2 -1 -------- Run | Yrd Mat Min Mat Sto Rec Fac Fac Ext Cet Arc Hub Fac Upp Upp Zhi Pro Fac Arm Lab Res Res Tes Acc Total Allies 74 | . . . . 12 11 1 1 32 5 . 1 1 . . . . . 1 . 2 . . 7 Largest Group 21 | . . . . 11 11 10 1 21 21 16 13 1 . . . . . 1 . 1 . . 4 Highest-Rated Group 1063 | . . . . 142 160 150 26 750 1063 913 716 10 . . . . . 26 . 56 . . 54 Highest-Rated Ally 159 | . . . . 31 34 34 26 159 146 146 96 10 . . . . . 26 . 56 . . 26 Total Orders 19 | . . . . 2 3 1 . 3 2 . 8 . . . . . . . . . . . . STAY 13 | . . . . 1 2 1 . 2 1 . 6 . . . . . . . . . . . . FOLLOW 6 | . . . . 1 1 . . 1 1 . 2 . . . . . . . . . . . . Ally Attacks 538 | . . . . 135 27 32 . 181 44 32 78 . . . . . . . . 2 . . 7 Total Damage 9721 | . . . . 1311 235 604 . 3650 1167 792 1818 . . . . . . . . 78 . . 66 Kills 78 | . . . . 22 5 5 . 24 7 4 11 . . . . . . . . . . . . Allies Corrupted 4 | . . . . . . . . 1 . . 3 . . . . . . . . . . . . Allies Melted . | . . . . . . . . . . . . . . . . . . . . . . . . Intel | -11 -10 -10 -9 -9 -9 -7 -6 -6 -6 -6 -6 -5 -5 -5 -5 -4 -4 -4 -4 -3 -2 -2 -1 ------- Run | Yrd Mat Min Mat Sto Rec Fac Fac Ext Cet Arc Hub Fac Upp Upp Zhi Pro Fac Arm Lab Res Res Tes Acc Robot Analysis Total 8 | . 1 . 2 . . . . . . . . 1 . . 4 . . . . . . . . Derelict Logs Recovered 2 | . . 1 . . . . . . . . . . . 1 . . . . . . . . . Drone Launches . | . . . . . . . . . . . . . . . . . . . . . . . . Drone Recoveries . | . . . . . . . . . . . . . . . . . . . . . . . . Exploration | -11 -10 -10 -9 -9 -9 -7 -6 -6 -6 -6 -6 -5 -5 -5 -5 -4 -4 -4 -4 -3 -2 -2 -1 ------------- Run | Yrd Mat Min Mat Sto Rec Fac Fac Ext Cet Arc Hub Fac Upp Upp Zhi Pro Fac Arm Lab Res Res Tes Acc Turns Passed 23235 | 141 1387 543 541 2083 2646 2168 689 1641 436 1220 2293 911 682 251 208 149 1072 1090 523 1127 256 549 629 Spaces Moved 12378 | 72 680 260 220 562 646 1420 553 742 227 317 1143 518 309 251 163 167 774 910 233 948 350 496 417 Core 93 | 4 . . . . . . . . . . . . . . . . . . . . . . 89 Treads 5419 | 68 680 260 220 562 414 748 290 475 161 317 530 . . . . . 205 . . . . 161 328 Legs 6036 | . . . . . 222 523 . 108 66 . 613 518 309 251 163 167 458 910 233 810 350 335 . Wheels . | . . . . . . . . . . . . . . . . . . . . . . . . Hover 602 | . . . . . . 69 263 159 . . . . . . . . 111 . . . . . . Flight 228 | . . . . . 10 80 . . . . . . . . . . . . . 138 . . . Fastest Speed 50 | 50 160 160 160 170 116 65 74 111 111 111 111 111 89 89 89 89 77 77 77 52 52 52 50 Average Speed 120 | 153 160 160 179 316 221 103 86 163 126 111 111 111 101 89 89 89 88 77 77 78 52 68 103 Slowest Speed 588 | 160 160 160 250 570 588 158 136 211 166 111 111 111 144 89 89 89 138 77 77 107 52 181 181 Overloaded Moves 31 | . . . . . . . 31 . . . . . . . . . . . . . . . . Propulsion Burnouts . | . . . . . . . . . . . . . . . . . . . . . . . . Robots Hopped 1 | . . . . . . . . . . . . . . . . . . . . 1 . . . Cave-ins Triggered 2 | . . . . . . 1 . . . . . . . . . . . . . . . . 1 Teleports 2 | . . . . . . . . . . . . . . . . . . . 1 1 . . . Exploration Rate (%) 49 | 4 96 51 34 90 90 33 20 75 71 88 31 21 44 53 61 42 32 45 98 19 15 54 16 Regions Visited 23 Branch Regions 14 Pre-discovered Areas 16 | . 3 1 1 . 8 . . . . . . . . . 3 . . . . . . . . Known Exits Taken 11 | . 1 1 1 . . . 1 . . . . 1 . . . . 1 1 1 1 1 1 . Unknown Exits Taken 12 | 1 . . . 1 1 1 . 1 1 1 1 . 1 1 1 1 . . . . . . . Scrap Searched 2 | . . 2 . . . . . . . . . . . . . . . . . . . . . Spaces Dug 180 | . 1 3 3 11 . 42 20 5 . 1 8 10 8 . . . 19 17 . 10 8 2 12 Terrain Destroyed 764 | . 20 7 17 11 . 131 27 9 6 4 23 20 46 15 . . 225 64 7 36 10 11 75 Melee 68 | . 1 3 3 11 . 26 16 . . . . . . . . . . . . 1 7 . . Projectile 237 | . . . 1 . . . 11 9 6 4 23 20 18 . . . 20 28 4 35 3 11 44 AOE 459 | . 19 4 13 . . 105 . . . . . . 28 15 . . 205 36 3 . . . 31 Terrain Rammed . | . . . . . . . . . . . . . . . . . . . . . . . . Walls Destroyed . | . . . . . . . . . . . . . . . . . . . . . . . . Machines Disabled . | . . . . . . . . . . . . . . . . . . . . . . . . Actions | -11 -10 -10 -9 -9 -9 -7 -6 -6 -6 -6 -6 -5 -5 -5 -5 -4 -4 -4 -4 -3 -2 -2 -1 --------- Run | Yrd Mat Min Mat Sto Rec Fac Fac Ext Cet Arc Hub Fac Upp Upp Zhi Pro Fac Arm Lab Res Res Tes Acc Total 19219 | 88 864 347 320 733 1784 1929 700 1119 347 1160 2125 792 658 269 219 167 1046 1228 505 1233 407 639 540 Wait 4796 | . 92 46 29 41 983 299 66 217 67 797 900 173 314 7 40 . 119 199 176 125 30 42 34 Move 12352 | 71 679 259 219 561 645 1419 552 741 226 316 1142 517 308 250 162 166 773 909 232 945 349 495 416 Hop 1 | . . . . . . . . . . . . . . . . . . . . 1 . . . Pick Up 183 | 4 15 5 12 15 4 25 10 9 11 9 14 6 2 3 3 . 10 11 3 4 2 5 1 Fast Attach 111 | 7 1 1 2 7 2 10 3 2 . . 2 5 . . 1 . 4 5 7 30 9 10 3 Attach 76 | . 2 . 6 1 2 12 2 2 3 4 3 3 . 1 1 1 9 3 6 8 2 2 3 Detach 82 | . . . 1 4 8 14 2 4 3 2 4 2 1 . . . 6 2 11 15 . 3 . Swap 91 | . 8 6 10 13 1 6 1 4 2 . 4 7 5 . 2 . 6 5 4 5 . 2 . Drop 221 | . 5 5 14 19 28 19 12 13 5 8 9 9 8 . 3 . 9 12 7 22 4 9 1 Fire 986 | 6 56 19 19 44 50 55 31 52 30 11 47 64 20 8 6 . 109 74 59 77 3 66 80 Melee 169 | . 2 4 5 22 30 64 20 1 . 13 . . . . . . . . . 1 7 . . Ram . | . . . . . . . . . . . . . . . . . . . . . . . . Kick 9 | . . . . . . . . . . . . 6 . . . . 1 1 . . 1 . . Crush 25 | . 4 2 3 4 3 1 1 1 . . . . . . . . . . . . . 5 1 Escape Stasis 13 | . . . . 2 . 5 . 5 . . . . . . . . . . . . . . 1 Rewire 104 | . . . . . 28 . . 68 . . . . . . 1 . . 7 . . . . . Trap . | . . . . . . . . . . . . . . . . . . . . . . . . Miscellaneous . | . . . . . . . . . . . . . . . . . . . . . . . . Route ------- -11/Scrapyard -10/Materials (discovered 5 exits: *Mat x3 / *Min x2) -10/Mines (discovered 3 exits: *Mat x2 / Sub) -9/Materials (discovered 4 exits: [*Mat] / Min x2 / *Sto) -9/Storage (discovered 2 exits: [*Mat] / *Rec) -9/Recycling -7/Factory (discovered 3 exits: *Fac x2 / [*Low]) -6/Factory (discovered 4 exits: *Low x2 / *Ext x2) -6/Extension (discovered 2 exits: *Fac / *Cet) -6/Cetus (discovered 2 exits: *Fac / [*Arc]) -6/Archives (discovered 3 exits: *Fac / *Hub x2) -6/Hub_04(d) (discovered 2 exits: *Fac x2) -5/Factory (discovered 3 exits: *Fac / *Upp x2) -5/Upper Caves -5/Upper Caves -5/Zhirov -4/Proximity Caves -4/Factory (discovered 4 exits: *Res / Upp x2 / *Arm) -4/Armory -4/Lab -3/Research -2/Research (discovered 2 exits: *Tes x2) -2/Testing -1/Access (discovered 1 exit: Sur) History --------- Turn | Location | Event 35 | -11/Scrapyard | Discovered new exit (range 15) 142 | -11/Scrapyard | Entered Materials 296 | -10/Materials | Discovered new exit (range 15) 305 | -10/Materials | Build established: Mutant 443 | -10/Materials | Discovered new exit (range 13) 876 | -10/Materials | Learned Storage trap positions 882 | -10/Materials | Discovered new exit (range 3) 929 | -10/Materials | Learned location of Subcaves (-10) 952 | -10/Materials | Core integrity fell below 50% 962 | -10/Materials | Discovered new exit (range 16) 974 | -10/Materials | Identified exit to Mines 1011 | -10/Materials | Learned location of Mines (-8) 1038 | -10/Materials | Learned location of 2 exits from Mines 1084 | -10/Materials | Learned Storage machine intel 1095 | -10/Materials | Repaired EM Pulse Gun 1123 | -10/Materials | Repaired Hammer 1174 | -10/Materials | Identified exit to Materials 1529 | -10/Materials | Entered Mines 1530 | -10/Mines | Identified exit to Subcaves 1558 | -10/Mines | Learned location of Zion (-6) 1585 | -10/Mines | Assembled infested the area 1806 | -10/Mines | YI-UF0 nonchalantly dropped a Grenade Launcher on the ground 1854 | -10/Mines | Murdered YI-UF0 1998 | -10/Mines | Discovered exit to Materials (range 10) 2009 | -10/Mines | Found DCF Scrap (12 items) 2072 | -10/Mines | Entered Materials 2072 | -9/Materials | Evolved 2 slots: Utility x1, Weapon x1 2308 | -9/Materials | Identified exit to Mines 2308 | -9/Materials | Identified exit to Storage 2413 | -9/Materials | Discovered new exit (range 15) 2613 | -9/Materials | Entered Storage 2614 | -9/Storage | Loaded intel: 9 trap records 2615 | -9/Storage | Loaded intel: 45 machine locations 2803 | -9/Storage | Build established: Tank 3536 | -9/Storage | Discovered new exit (range 15) 3690 | -9/Storage | Assisted by bots powering up and referring to "LRC-V3" 4029 | -9/Storage | Met a pair of Derelict thieves 4213 | -9/Storage | First assault squad dispatched 4257 | -9/Storage | Build established: Commander-Tank 4479 | -9/Storage | Lost 4 allies 4683 | -9/Storage | Used back door to open Recycling access 4683 | -9/Storage | Discovered new exit (range 5) 4696 | -9/Storage | Entered Recycling 4696 | -9/Recycling | Accompanied by 1 ally 4744 | -9/Recycling | Build established: Tank 5235 | -9/Recycling | Scanned before Scraplab entrance 5266 | -9/Recycling | Angered Scraplab inhabitants 5326 | -9/Recycling | Found Prototype Device 5326 | -9/Recycling | Identified Scrap Engine 5792 | -9/Recycling | Build established: Construct 6651 | -9/Recycling | Discovered new exit (range 15) 6784 | -9/Recycling | Build established: Commander-Construct 6972 | -9/Recycling | Learned location of 3 exits from Materials 7074 | -9/Recycling | Learned Materials trap positions 7109 | -9/Recycling | Learned Materials stockpile data 7135 | -9/Recycling | Learned location of Storage (-9) 7258 | -9/Recycling | Learned Materials emergency access door positions 7342 | -9/Recycling | Entered Factory 7342 | -7/Factory | Accompanied by 10 allies 7342 | -7/Factory | Evolved 4 slots: Propulsion x1, Utility x2, Weapon x1 7562 | -7/Factory | Lost 8 allies 7997 | -7/Factory | Build established: Construct 8687 | -7/Factory | Found Prototype Launcher 8687 | -7/Factory | Identified Rocket Array 8795 | -7/Factory | Discovered new exit (range 15) 9112 | -7/Factory | Crushed by falling debris 9270 | -7/Factory | Discovered new exit (range 8) 9498 | -7/Factory | Discovered new exit (range 7) 9510 | -7/Factory | Entered another Factory area 9510 | -6/Factory | Evolved 2 slots: Propulsion x1, Utility x1 9807 | -6/Factory | Discovered new exit (range 11) 9818 | -6/Factory | Build established: Hacker-Construct 9820 | -6/Factory | Identified exit to Lower Caves 9820 | -6/Factory | Identified exit to Extension 10009 | -6/Factory | Fabricated Thermic Laser (x2) 10199 | -6/Factory | Entered Extension 10418 | -6/Extension | Rescued a captive Derelict 10419 | -6/Extension | Rescued a captive Derelict 10509 | -6/Extension | Rescued a captive Derelict 10509 | -6/Extension | Rescued a captive Derelict 10555 | -6/Extension | Rescued a captive Derelict 10605 | -6/Extension | Rescued a captive Derelict 10615 | -6/Extension | Rescued a captive Derelict 10626 | -6/Extension | Rescued a captive Derelict 10656 | -6/Extension | Rescued a captive Derelict 11142 | -6/Extension | Build established: Commander-Construct 11301 | -6/Extension | Spotted B-75 Beast 11326 | -6/Extension | Spotted B-75 Beast 11339 | -6/Extension | Allies destroyed B-75 Beast 11370 | -6/Extension | Lost 7 allies 11476 | -6/Extension | Rescued a captive Derelict 11482 | -6/Extension | Rescued a captive Derelict 11483 | -6/Extension | Rescued a captive Derelict 11503 | -6/Extension | Rescued A7 11523 | -6/Extension | Rescued a captive Derelict 11534 | -6/Extension | Rescued a captive Derelict 11651 | -6/Extension | Rescued a captive Derelict 11661 | -6/Extension | Rescued a captive Derelict 11671 | -6/Extension | Rescued a captive Derelict 11680 | -6/Extension | Rescued a captive Derelict 11686 | -6/Extension | Rescued a captive Derelict 11698 | -6/Extension | Rescued a captive Derelict 11708 | -6/Extension | Rescued a captive Derelict 11772 | -6/Extension | Discovered new exit (range 11) 11774 | -6/Extension | Discovered new exit (range 7) 11777 | -6/Extension | Disrupted transfer network 11840 | -6/Extension | Entered Cetus 11840 | -6/Cetus | Accompanied by 20 allies (A7) 11845 | -6/Cetus | Acquired a Cetus Manufacturing Module code from A7 11878 | -6/Cetus | Spotted Cetus Guard 11878 | -6/Cetus | Spotted Cetus Guard 11881 | -6/Cetus | Spotted Cetus Guard 11883 | -6/Cetus | Spotted Cetus Guard 11892 | -6/Cetus | Allies destroyed Cetus Guard 11893 | -6/Cetus | Allies destroyed Cetus Guard 11900 | -6/Cetus | Allies destroyed Cetus Guard 11928 | -6/Cetus | Lost 3 allies 12008 | -6/Cetus | Started Cetus Manufacturing Module 12017 | -6/Cetus | Escorted A7 to Cetus Mainframe 12033 | -6/Cetus | Manufactured an Enhanced Grunt 12058 | -6/Cetus | Manufactured an Enhanced Grunt 12083 | -6/Cetus | Manufactured an Enhanced Grunt 12105 | -6/Cetus | Discovered new exit (range 15) 12108 | -6/Cetus | Manufactured an Enhanced Grunt 12133 | -6/Cetus | Manufactured an Enhanced Grunt 12168 | -6/Cetus | Spotted Cetus Guard 12169 | -6/Cetus | Spotted Cetus Guard 12172 | -6/Cetus | Spotted Cetus Guard 12173 | -6/Cetus | Spotted Cetus Guard 12176 | -6/Cetus | Allies destroyed Cetus Guard 12179 | -6/Cetus | Destroyed Cetus Guard 12187 | -6/Cetus | Destroyed Cetus Guard 12190 | -6/Cetus | Destroyed Cetus Guard 12195 | -6/Cetus | Discovered new exit (range 16) 12200 | -6/Cetus | Met Revision 17 12220 | -6/Cetus | Lost 3 allies 12276 | -6/Cetus | Entered Archives 12276 | -6/Archives | Accompanied by 16 allies (A7) 12281 | -6/Archives | Received a hacking code to weaken MAIN.C 13120 | -6/Archives | Discovered new exit (range 15) 13190 | -6/Archives | Discovered new exit (range 16) 13257 | -6/Archives | Discovered new exit (range 14) 13496 | -6/Archives | Entered Hub_04(d) 13496 | -6/Hub_04(d) | Accompanied by 13 allies 13528 | -6/Hub_04(d) | Discovered new exit (range 15) 13827 | -6/Hub_04(d) | Network Hub disabled 13890 | -6/Hub_04(d) | Spotted Lightning 13891 | -6/Hub_04(d) | Spotted Lightning 13891 | -6/Hub_04(d) | Spotted Lightning 13907 | -6/Hub_04(d) | Allies destroyed Lightning 13914 | -6/Hub_04(d) | Allies destroyed Lightning 13918 | -6/Hub_04(d) | Allies destroyed Lightning 14589 | -6/Hub_04(d) | Lost 4 allies 14705 | -6/Hub_04(d) | Discovered new exit (range 15) 14840 | -6/Hub_04(d) | Build established: Construct 15595 | -6/Hub_04(d) | Network Hub disabled 15789 | -6/Hub_04(d) | Entered Factory 15789 | -5/Factory | Evolved 2 slots: Power x1, Utility x1 15942 | -5/Factory | Discovered new exit (range 14) 16105 | -5/Factory | Identified exit to Upper Caves 16106 | -5/Factory | Central database locked down 16529 | -5/Factory | Repaired Lrn. Proton Cannon 16700 | -5/Factory | Entered Upper Caves 17363 | -5/Upper Caves | Discovered new exit (range 13) 17382 | -5/Upper Caves | Entered another Upper Caves area 17427 | -5/Upper Caves | Attracted the attention of an 0b10 checkpoint 17594 | -5/Upper Caves | Encountered a Warlord checkpoint 17625 | -5/Upper Caves | Discovered new exit (range 9) 17633 | -5/Upper Caves | Entered Zhirov 17633 | -5/Zhirov | Discovered new exit (range 3) 17650 | -5/Zhirov | Met Zhirov 17668 | -5/Zhirov | Learned location of Quarantine (-3) 17668 | -5/Zhirov | Learned location of Command (-1) 17676 | -5/Zhirov | Zhirov requested help retrieving the SGEMP Prototype 17690 | -5/Zhirov | Found Alien Artifact 17690 | -5/Zhirov | Identified Integrated Dissipator 17690 | -5/Zhirov | Installed Integrated Dissipator, increased core heat dissipation (+20) 17716 | -5/Zhirov | Found Alien Artifact 17841 | -5/Zhirov | Entered Proximity Caves 17980 | -4/Proximity Caves | Discovered new exit (range 16) 17990 | -4/Proximity Caves | Entered Factory 17990 | -4/Factory | Evolved 2 slots: Propulsion x1, Utility x1 18293 | -4/Factory | Destroyed 7 combat bots 18303 | -4/Factory | Lost 3 parts (1p2w) 18584 | -4/Factory | Build established: Mutant 18747 | -4/Factory | Destroyed 7 combat bots 18798 | -4/Factory | Spotted B-86 Titan 18800 | -4/Factory | Identified exit to Upper Caves 18800 | -4/Factory | Identified exit to Armory 18842 | -4/Factory | Fabricated Rnf. Quantum Reactor? 18987 | -4/Factory | Discovered new exit (range 22) 18990 | -4/Factory | First assault squad dispatched 19049 | -4/Factory | Build established: Construct 19062 | -4/Factory | Entered Armory 19195 | -4/Armory | Fabricated Centrium Leg (x1) 19246 | -4/Armory | Fabricated Enh. Nova Cannon (x2) 19847 | -4/Armory | Energy Cycler disabled 19855 | -4/Armory | Found Prototype Processor 19855 | -4/Armory | Identified Exp. Terrain Scan Processor 19858 | -4/Armory | Found Exp. Terrain Scan Processor 20062 | -4/Armory | First assault squad dispatched 20107 | -4/Armory | Discovered new exit (range 4) 20110 | -4/Armory | Identified exit to Lab 20152 | -4/Armory | Entered Lab 20152 | -4/Lab | Discovered new exit (range 9) 20158 | -4/Lab | Identified exit to Research 20162 | -4/Lab | Unable to decrypt terminal 20162 | -4/Lab | Opened the door to a hidden lab 20163 | -4/Lab | Gained access to the hidden lab's interior 20167 | -4/Lab | Detected by scanners 20173 | -4/Lab | Found Alien Artifact 20177 | -4/Lab | Confronted by A5 20200 | -4/Lab | System corruption reached 10% 20209 | -4/Lab | Found Alien Artifact 20209 | -4/Lab | Identified Transdimensional Reconstructor (x2) 20209 | -4/Lab | Warped through subspace 20273 | -4/Lab | Found Prototype Energy Cannon 20273 | -4/Lab | Identified Potential Cannon 20399 | -4/Lab | Identified Core Reset Matrix 20399 | -4/Lab | Used Core Reset Matrix 20403 | -4/Lab | Sensed 2 artifacts in vicinity 20444 | -4/Lab | Destroyed A5 20472 | -4/Lab | Found Integrated Dissipator 20472 | -4/Lab | Installed Integrated Dissipator, increased core heat dissipation (+20) 20477 | -4/Lab | Found Core Expander 20477 | -4/Lab | Installed Core Expander, added new Power slot 20496 | -4/Lab | Found Prototype Hackware 20496 | -4/Lab | Identified Deep Network Scanner 20554 | -4/Lab | Found Potential Cannon 20581 | -4/Lab | Unable to decrypt terminal 20582 | -4/Lab | Found LC Capacitor 20611 | -4/Lab | Discovered exit to Research (range 13) 20618 | -4/Lab | Unable to decrypt terminal 20675 | -4/Lab | Entered Research 20675 | -3/Research | Evolved 2 slots: Utility x1, Weapon x1 20875 | -3/Research | Revision forces began assault on 0b10 20911 | -3/Research | Build established: Alien-Mutant 20961 | -3/Research | Met up with Revision 17++ 21283 | -3/Research | Intercept squad dispatched 21284 | -3/Research | Found Unknown Launcher 21284 | -3/Research | Identified Gamma Bomb Array 21298 | -3/Research | Spotted Tracker 21299 | -3/Research | Spotted Tracker 21304 | -3/Research | Spotted Combat Programmer 21306 | -3/Research | Warped through subspace 21375 | -3/Research | Research terminal network offline 21421 | -3/Research | Discovered new exit (range 15) 21442 | -3/Research | Identified exit to Research 21685 | -3/Research | Spotted Striker 21685 | -3/Research | Spotted Striker 21714 | -3/Research | Destroyed Striker 21749 | -3/Research | Spotted Striker 21751 | -3/Research | Spotted Striker 21762 | -3/Research | Spotted Executioner 21762 | -3/Research | Spotted Striker 21802 | -3/Research | Lost 4 allies 21802 | -3/Research | Entered another Research area 21802 | -2/Research | Evolved 2 slots: Propulsion x1, Utility x1 21843 | -2/Research | Discovered new exit (range 14) 21976 | -2/Research | Spotted B-90 Cyclops 22003 | -2/Research | Spotted B-90 Cyclops 22030 | -2/Research | Identified exit to Testing 22058 | -2/Research | Entered Testing 22062 | -2/Testing | Spotted PH-0FVAVI5L3U 22086 | -2/Testing | Found Prototype Processor 22086 | -2/Testing | Identified Exp. Core Analyzer 22088 | -2/Testing | Identified exit to Access 22111 | -2/Testing | Found Prototype Energy Cannon 22111 | -2/Testing | Identified Disintegrator 22132 | -2/Testing | Found Prototype Launcher 22132 | -2/Testing | Identified Mni. Smartbomb Launcher 22155 | -2/Testing | Build established: Hacker-Mutant 22161 | -2/Testing | Fabricated Enh. Nova Cannon (x2) 22255 | -2/Testing | Found Prototype Device 22262 | -2/Testing | Identified Exp. Hardlight Generator 22341 | -2/Testing | System corruption reached 10% 22492 | -2/Testing | Garrison activated, responded to threat 22580 | -2/Testing | Found Prototype Energy Cannon 22580 | -2/Testing | Identified Imp. Potential Cannon 22607 | -2/Testing | Entered Access 22607 | -1/Access | Evolved 2 slots: Utility x2 22689 | -1/Access | Identified exit to Surface 22986 | -1/Access | Crushed by falling debris 22987 | -1/Access | System corruption reached 10% 23021 | -1/Access | Garrison activated, responded to threat 23135 | -1/Access | Intercept squad dispatched 23154 | -1/Access | Spotted Tracker 23154 | -1/Access | Spotted Tracker 23166 | -1/Access | Build established: Alien-Mutant 23167 | -1/Access | Destroyed Tracker 23182 | -1/Access | Spotted Combat Programmer 23191 | -1/Access | Released all parts (12) 23192 | -1/Access | Spotted Combat Programmer 23200 | -1/Access | Core integrity fell below 50% 23213 | -1/Access | Lost 3 parts (1p1u1w) 23216 | -1/Access | Spotted B-99 Colossus 23217 | -1/Access | Emitted hypermatrix ping 23220 | -1/Access | Core integrity fell below 20% 23222 | -1/Access | Assembled emerged from beneath the floor 23236 | -1/Access | Destroyed by P-80 Master with Gamma Rifle Last Messages --------------- 23192_ Slug penetrates Wall. 23194_ System corrupted: Component data lost. 23195_ Penetrated by EMDS Slug. 23198_ EMDS Slug penetrates Wall. 23199_ Penetrated by EMDS Slug. 23207_ EMDS Slug penetrates Wall. 23210_ Penetrated by EMDS Slug. 23216_ Penetrated by Slug. 23216_ Penetrated by EMDS Slug. 23217_ Emitted hypermatrix ping. 23218_ Detected hypermatrix ping. 23218_ Penetrated by EMDS Slug. 23221_ System corrupted: Energy discharge (-21). 23222_ ALERT: Construction progress impeded, dispatching reinforcements to local area. 23225_ Slug penetrates Wall. 23226_ Acquired 8 matter. 23233_ O-32 Director: "IFF HANDSHAKE FAILED. SECURING TERMINAL." 23235_ Adv. Reaction Control System destroyed. 23235_ Knocked back. Map ----- +----------------------------------------------------+ | ?????????????????????????????????????????????????? | | ?????????????????????????????????????????????????? | | ?????????????????????????????????????????????????? | | ?????????????????????????????????????????????????? | | ?????????????????????????????????????????????????? | | ?????????????????????????????????????????????????? | | ?????????????????????????????????????????????????? | | ?????????????????????????????????????????????????? | | ?????????????????????????????????????????????????? | | ?????????????????????????????????????????????????? | | ?????????????????????????H ??????????????????????? | | ????????????????????????? ??????????????????????? | | ????????????????????????? ??????????????????????? | | ????????????????????????? #?????????????????????? | | ????????????????????????# p#?????????????????????? | | ????????????????????????# ?????????????????????? | | ????????????????????????# ?????????????????????? | | ????????????????????????# #?????###?####????????? | | ????????????????????????# #???# ? #????????? | | ????????????????????????# #???# *#??####### | | ????????????????????????# #???# #??? | | ????????????????????????# #???# % " #??? | | ????????????????????????# #???# """ #???? | | ????????????????????????# #???# """ #???? | | ????????????????????????# #???# " #????? | | ????????????????????????#@ #???? #????? | | ????????????????????????# #?????? ???????? | | ????????????????????????#% #?????###+##???????? | | ????????????????????????# s####### ##########+# | | ????????????????????????# "" | | ????????????????????????# "T | | ????????????????????????########## ############ | | ?????????????????????????????????######?????????#" | | ??????????????????????#?????????????????????????## | | ????????????????????? ?????????????????????????# | | ????????????????????? ?????##################### | | ?????##############??"" ????# | | ?????# #? "" ????# | | ?????# #? "" ???# | | ?????# #? S ???+ | | ?????# #? "" ??# | | ?????# # "" ??# | | ?????# # "" ?# | | ?????# # ?# ####### | | ##???# # # #?????# | | ###?# # # #?????# | | # #?# !! #![[ + #?????# | | ### !!! #![[ # #?????# | | % # !!! #![ # #?????# | | """####/##+########### ?# #?????# | +----------------------------------------------------+ Best States ------------- Heat Dissipation 105 Coolant Potential 200 Energy Generation 72 Energy Capacity 1423 Matter Stores 300 Matter Capacity 300 Sight Range 23 Robot Scan Range 16 Terrain Scan Density 10 Jamming Range 16 Power Amplification 60 Additional Mass Support 9 Armor Coverage 450 Resistance: TH 30 Core Shielding 30 Propulsion Shielding 90 Weapon Cycling 25 Evasion (%) 76 Core Analysis 8 Recoil Reduction 6 Matter Filtering 50 Particle Charging 30 Salvage Targeting 4 Offensive Hacking 25 Defensive Hacking 12 Authchip Count 3 Item Schematics ----------------- Enh. Nova Cannon | -2/Testing | Hacked Robot Schematics ------------------ None Fabricated ------------ Thermic Laser | x2 | -6/Factory | Preloaded Rnf. Quantum Reactor | x2 | -4/Factory | Preloaded Centrium Leg | x1 | -4/Armory | Preloaded Enh. Nova Cannon | x2 | -4/Armory | Preloaded Enh. Nova Cannon | x2 | -2/Testing | Authchip Alien Tech Used ----------------- Integrated Dissipator Transdimensional Reconstructor Core Reset Matrix Core Expander LC Capacitor Achievements -------------- None Challenges ------------ None Game ------ Seed MediumNovaScythe Manual? 0 Play Time 05:04:40 Cumulative 419.3 hours Start 2024.12.13 @ 18:16:46 End 2024.12.16 @ 17:20:18 Sessions 17 Manual Loads 0 Difficulty Rogue Special Mode None Game No. 192 Rogue 192 Adventurer 0 Explorer 0 Win Type - Total 15 Types 9/1/5/0/0/0/0/0/0 Lore% 87 Gallery% 90 Achievement% 76 Wizard Run 0 Options --------- Layout 0 ASCII 0 Keyboard 1 Movement Numpad Keybinds 0 Fullscreen 2 Font 12/Smallcaps Map View 83x54 Zoom Use 0% Tactical HUD 1 Map Filters NONE Filters NONE Steam 1 RUN: ab89ff82-16a8-408b-a5c3-3db0c85d7952